[Event "DFMM-LV 2023"]
[Site "Braunfels"]
[Date "2023.06.09"]
[Round "3.20"]
[White "Lukas, Anne"]
[Black "Valkova, Angelika"]
[Result "0-1"]
[Annotator "TA"]
[ECO "D02"]
[WhiteElo "2057"]
[BlackElo "2062"]
[PlyCount "120"]
[EventDate "2023.06.09"]
[EventType "team-tourn"]
[EventCountry "GER"]
[SourceTitle "playchess.com"]
[Source "ChessBase"]
[SourceQuality "1"]
[TimeControl "40/5400+30:1800+30"]

{[%evp 9,120,12,11,6,22,14,20,9,17,18,150,114,98,108,107,119,219,93,95,60,52,61,89,63,82,32,38,5,60,48,243,159,169,0,0,-52,-84,-74,-52,-135,-70,-131,-124,-212,-160,-210,-210,-227,-180,-180,-157,-157,-169,-159,-157,-175,-159,-172,-137,-159,0,0,1875,-304,0,0,0,0,0,0,0,-89,-97,-97,0,-118,-60,-306,-293,-573,-572,-512,-537,-534,-531,-572,-568,-679,-694,-1048,-826,-1530,-1467,-1164,-716,-1353,-1318,-7749,-2437,-6048,-5871,-5704,-4675,-29969,-29970,-29967,-29969,-29976,-29977,-29979,-29980,-29978,-29980]} 1. Nf3 {[%emt 0:00:03]} d5 {[%emt 0:00:11]} 2. g3 {[%emt 0:00:15]} Nd7 {[%emt 0:00:06]} 3. d4 {[%emt 0:00:06]} Nb6 {[%emt 0:00:06]} 4. Bg2 {[%emt 0:00:13]} Bf5 {[%emt 0:00:15]} 5. c3 {[%emt 0:00:24]} e6 {[%emt 0:00:34] [#]} 6. Nbd2 $146 {[%emt 0:02:00][%cal Oe2e4] D02: 1 d4 d5 2 Nf3 sidelines, including 2...Nf6 3 g3 and 2...Nf6 3 Bf4.} ({Predecessor:} 6. O-O Be7 7. Re1 Nf6 8. Bf4 O-O 9. Nh4 Re8 10. Nxf5 exf5 11. Nd2 Bd6 12. Bg5 {0-1 Biastoch,B (2232)-Santos Ruiz,M (2587) Titled Tuesday intern op 15th Nov Early blitz 2022 (3)}) 6... h6 {[%emt 0:02:13]} 7. O-O {[%emt 0:01:03]} Nf6 {[%emt 0:00:10]} 8. Re1 {[%emt 0:01:08] The position is equal.} Bd6 {[%emt 0:09:33]} 9. c4 {[%emt 0:06:58]} c5 {[%emt 0:09:55]} (9... dxc4 $2 10. e4 Bh7 11. e5 $18) (9... Be7 $11 {remains equal.}) 10. cxd5 {[%emt 0:01:46]} exd5 {[%emt 0:00:59]} 11. Nh4 {[%emt 0:01:09]} Bg4 {[%emt 0:17:01]} 12. h3 {[%emt 0:04:15]} g5 {[%emt 0:01:16]} (12... Be6 $16) 13. Nhf3 {[%emt 0:05:31]} (13. hxg4 $18 {and the rest is easy.} gxh4 14. e4 hxg3 15. e5 (15. exd5+ Kf8 $14) 15... gxf2+ 16. Kxf2) 13... Bf5 $16 {[%emt 0:03:20]} 14. dxc5 {[%emt 0:03:58]} Bxc5 {[%emt 0:00:16]} 15. Nb3 {[%emt 0:00:09]} Bd6 {[%emt 0:02:18]} 16. Nfd4 {[%emt 0:04:15]} Be4 {[%emt 0:01:24]} 17. Bd2 {[%emt 0:10:30]} (17. Nd2 $16) 17... Na4 {[%emt 0:08:54]} 18. Rb1 {[%emt 0:06:43][%cal Ob3a5]} Bxb1 {[%emt 0:07:15]} (18... Qd7 $11) 19. Qxb1 $14 {[%emt 0:00:04] e4 is the strong threat.} Be5 $2 {[%emt 0:02:51]} (19... Qd7 $14) 20. Qf5 {[%emt 0:03:53][%mdl 1024] White has strong compensation.} Qd6 {[%emt 0:04:39]} 21. Nb5 $2 {[%emt 0:02:44]} (21. e4 $1 $18 dxe4 22. Bxe4) 21... Qe6 $11 {[%emt 0:01:37]} 22. Qf3 {[%emt 0:01:11]} (22. e4 $11 dxe4 23. Bxe4) 22... Ne4 $1 $15 {[%emt 0:10:07]} ({Much less strong is} 22... Nxb2 23. Nc5 Qb6 24. Nd3 $14) 23. Be3 {[%emt 0:00:41]} O-O {[%emt 0:04:45] Threatens to win with ...f5.} 24. N5d4 {[%emt 0:02:32]} (24. N3d4 $15 Qg6 25. Nf5) 24... Qf6 {[%emt 0:01:29]} ({Black should try} 24... Qg6 $17 25. Bc1 f5) 25. Nf5 {[%emt 0:02:52]} ({Better is} 25. Qg4 $15) 25... Nxb2 $17 {[%emt 0:01:12]} 26. g4 {[%emt 0:04:18]} (26. Nc5 $17 Nxc5 27. Bxc5) 26... Nc4 {[%emt 0:01:06]} 27. Bd4 {[%emt 0:00:35]} (27. Bc5 $17) 27... Rfd8 $19 {[%emt 0:04:00]} 28. Qd3 {[%emt 0:01:18]} Bxd4 {[%emt 0:00:37]} 29. Nbxd4 {[%emt 0:00:28]} Ncd6 {[%emt 0:01:37]} 30. Bxe4 {[%emt 0:02:54]} dxe4 {[%emt 0:01:03]} 31. Qb3 {[%emt 0:00:27]} Nxf5 {[%emt 0:00:46]} 32. Nxf5 {[%emt 0:00:06]} b6 {[%emt 0:00:37]} 33. Qa4 {[%emt 0:00:45]} Qc3 {[%emt 0:02:28]} 34. Rb1 {[%emt 0:02:34]} Qxh3 $2 {[%emt 0:00:32]} (34... Rd2 $17 35. Qxe4 (35. Nxh6+ $2 Kf8 $17) 35... Rad8) 35. Qxe4 $11 {[%emt 0:00:23]} Re8 $2 {[%emt 0:01:56][%mdl 8192]} (35... Rac8 $11 36. Ne7+ Kg7) 36. Qc4 $4 {[%emt 0:00:02][%mdl 8192]} (36. Qd4 $18 {[%csl Gf5][%cal Rd4g7] was the only winning move.} f6 37. Rb3 (37. Qxf6 Qxg4+ 38. Kh2 Qf4+ 39. Kg1 Qg4+ 40. Kf1 Qh3+ 41. Kg1 Qg4+ $11) 37... Qxb3 38. axb3) 36... Rac8 $2 {[%emt 0:00:29]} (36... Rad8 $19 {Strongly threatening ...Rd2.} 37. f3 Re5) 37. Ne7+ $1 {[%emt 0:00:05][%mdl 64] Deflection} Rxe7 {[%emt 0:00:06]} 38. Qxc8+ {[%emt 0:00:04][%mdl 4096] Endgame KQR-KQR} Kg7 {[%emt 0:00:27] And now ...Re4 would win.} 39. Rb3 {[%emt 0:01:00]} Qh4 $36 {[%emt 0:00:11][%mdl 2048] White is under pressure.} 40. Qc3+ {[%emt 0:02:40]} (40. Rf3 $11) 40... f6 $17 {[%emt 0:00:21]} 41. Qf3 {[%emt 0:30:32] [#]} Rc7 {[%emt 0:02:16]} (41... h5 $1 $17 {...Rc7 would be deadly.} 42. gxh5 Re4) 42. Rb1 {[%emt 0:00:00] [#]} (42. Rc3 $11 {keeps the balance.} Rxc3 43. Qb7+ Kh8 44. Qa8+ Rc8 45. Qxc8+ Kg7 46. Qd7+ Kh8 47. Qc8+ Kh7 48. Qd7+ Kg8 49. Qe8+ Kg7 50. Qd7+ Kh8 51. Qe8+ Kg7 52. Qd7+) 42... Rc4 {[%emt 0:00:40]} ({Black should play} 42... h5 $1 $17 43. gxh5 Rc4) 43. e4 $2 {[%emt 0:00:00]} ({Only move:} 43. Qb7+ $1 $15 Kg6 44. f3) 43... h5 $1 $19 {[%emt 0:00:52]} 44. Rd1 $2 {[%emt 0:00:00]} (44. gxh5 {only move.} Rxe4 45. a3) 44... Qxg4+ {[%emt 0:01:09]} 45. Qxg4 {[%emt 0:00:00]} hxg4 {[%emt 0:00:03] KR-KR} 46. Rd7+ {[%emt 0:00:00]} Kg6 {[%emt 0:00:12]} 47. Rxa7 {[%emt 0:00:00]} Rxe4 {[%emt 0:00:11]} 48. Rb7 {[%emt 0:00:00]} Rb4 {[%emt 0:01:07]} 49. a4 {[%emt 0:00:00]} Kf5 {[%emt 0:00:17]} 50. Kg2 {[%emt 0:00:00]} Kf4 {[%emt 0:01:10] Hoping for ...g3.} 51. Rd7 {[%emt 0:00:00]} f5 {[%emt 0:00:32]} 52. Rd6 {[%emt 0:00:00]} g3 {[%emt 0:01:34]} 53. fxg3+ {[%emt 0:00:00]} Kg4 {[%emt 0:00:07]} 54. Rd2 {[%emt 0:00:00]} Rxa4 {[%emt 0:00:40]} 55. Rb2 {[%emt 0:00:00]} Rc4 {[%emt 0:00:32]} 56. Kh2 {[%emt 0:00:00] [#]} b5 $1 {[%emt 0:02:01][%cal Bb6b5,Bb5b4][%mdl 32] Black mates.} 57. Kg2 {[%emt 0:00:00]} b4 {[%emt 0:00:44]} 58. Kh2 {[%emt 0:00:00]} f4 {[%emt 0:04:09]} 59. gxf4 {[%emt 0:00:00]} gxf4 {[%emt 0:00:06][%cal Bg5f4,Bf4f3][%mdl 32]} 60. Kg2 {[%emt 0:00:00]} f3+ {[%emt 0:00:38] What a fight!   Weighted Error Value: White=0.82/Black=0.49.  Loses game:     	White=1     	Black=2      Missed win:     	White=2     	Black=1      Mistake:       	White=10    	Black=7      Inaccurate:     	White=4     	Black=1      OK:         	White=10    	Black=9      Best:        	White=2     	Black=5      Strong:       	---       	Black=2      Brilliant:      	---       	---} 0-1

[Event "DFMM-LV 2023"]
[Site "Braunfels"]
[Date "2023.06.09"]
[Round "3.21"]
[White "Gheng, Simona"]
[Black "Buchholz, Maja Patricia"]
[Result "1-0"]
[Annotator "TA"]
[ECO "C03"]
[WhiteElo "1918"]
[BlackElo "1899"]
[PlyCount "89"]
[EventDate "2023.06.09"]
[EventType "team-tourn"]
[EventCountry "GER"]
[SourceTitle "playchess.com"]
[Source "ChessBase"]
[SourceQuality "1"]
[TimeControl "40/5400+30:1800+30"]

{[%evp 9,88,36,50,48,52,43,42,24,42,0,32,-4,-6,-16,14,14,13,13,8,0,0,0,22,-28,-6,-8,-8,-25,0,-45,-52,-43,-48,-48,-61,-56,-56,-64,-51,-51,-52,-56,-52,-73,-48,-47,-48,-47,-34,-49,-45,-46,-41,-57,-41,-76,-46,-89,-39,-60,-59,-73,439,447,444,438,440,425,402,243,210,253,260,250,768,387,377,358,29998,29999,29999]} 1. e4 {[%emt 0:00:03]} e6 {[%emt 0:00:06]} 2. d4 {[%emt 0:00:24]} d5 {[%emt 0:00:07]} 3. Nd2 {[%emt 0:00:42]} Be7 {[%emt 0:00:08]} 4. Ngf3 {[%emt 0:00:30]} c5 {[%emt 0:00:10]} 5. exd5 {[%emt 0:00:29]} Qxd5 {[%emt 0:00:26]} 6. Bc4 {[%emt 0:01:44][%cal Bf1c4,Bc4b5,Bb5d3][%mdl 32] C03: French Tarrasch: Unusual Black 3rd moves.} Qc6 {[%emt 0:00:45]} 7. O-O {[%emt 0:03:19]} Nf6 {[%emt 0:01:27][%cal Bg8f6,Bf6d7,Bd7e5,Be5d3][%mdl 32] [#]} 8. Ne5 $146 {[%emt 0:03:03] White is slightly better.} ({Predecessor:} 8. Qe2 O-O 9. Nb3 cxd4 10. Nbxd4 Qc7 11. Nb5 Qb6 12. Bf4 Nc6 13. c3 a6 14. Nd6 {0-1 Kuerschner,M (1893)-Blomer,M (1656) GER-ch Net blitz qual4 2021 (5)}) 8... Qc7 {[%emt 0:01:27]} 9. Bb5+ {[%emt 0:05:45]} Nbd7 {[%emt 0:00:34]} 10. Nxd7 {[%emt 0:00:52]} (10. Nb3 {with more complications.} cxd4 11. Bf4 Qb6 12. Be2) 10... Nxd7 {[%emt 0:02:05]} 11. dxc5 {[%emt 0:01:42]} (11. Ne4 {is interesting.} O-O 12. Be3 cxd4 13. Qxd4 a6 14. Be2) 11... Qxc5 {[%emt 0:00:46]} 12. Bd3 {[%emt 0:02:50]} O-O {[%emt 0:00:53]} 13. Ne4 {[%emt 0:01:01]} Qd5 {[%emt 0:03:39]} 14. Qe2 {[%emt 0:04:13]} Ne5 {[%emt 0:08:52]} 15. Nc3 {[%emt 0:02:17]} Qa5 {[%emt 0:01:18]} 16. Rd1 {[%emt 0:10:11]} (16. Qh5 g6 17. Qh3 Nxd3 18. Qxd3 b6 $15) (16. Be4 $142 $1) 16... Nxd3 {[%emt 0:05:12]} 17. Rxd3 {[%emt 0:00:45]} Rd8 {[%emt 0:05:01]} 18. Bd2 {[%emt 0:09:38][%cal Oc3d5]} Qb6 {[%emt 0:04:21]} 19. Nd5 {[%emt 0:01:51]} Rxd5 {[%emt 0:06:32]} 20. Rxd5 {[%emt 0:04:45] And now Rd3 would win.} Qxb2 {[%emt 0:01:20]} 21. Re1 {[%emt 0:07:12]} exd5 {[%emt 0:01:46]} 22. Qxe7 {[%emt 0:00:09][%cal Re7e8]} Be6 {[%emt 0:01:25]} (22... Qxc2 $2 23. Qe8#) 23. Bb4 {[%emt 0:00:44]} Qxc2 {[%emt 0:04:23]} (23... Qxa2 24. Qxb7 Re8 25. Qc6 $11) 24. Qxb7 {[%emt 0:01:49]} Qc8 {[%emt 0:00:44]} 25. Qe7 {[%emt 0:00:45]} h6 {[%emt 0:00:55]} 26. h3 {[%emt 0:01:38]} Rb8 {[%emt 0:03:28]} 27. a3 {[%emt 0:00:26]} Rb7 {[%emt 0:00:22]} 28. Qh4 {[%emt 0:00:52]} Rd7 {[%emt 0:02:20]} 29. Rd1 {[%emt 0:07:52]} Qc2 {[%emt 0:01:12]} 30. Qd4 {[%emt 0:00:32]} Rc7 {[%emt 0:03:07]} 31. Rd2 {[%emt 0:01:26]} Qc6 {[%emt 0:09:47]} 32. h4 {[%emt 0:03:18]} Qc4 {[%emt 0:05:16]} (32... Qc1+ {simplifies} 33. Rd1 Qc2 34. Qd3 Qxd3 35. Rxd3 Rc1+) 33. g3 {[%emt 0:00:52]} Kh7 {[%emt 0:01:07]} (33... Qb3 $17 {Strongly threatening ...Rc1+.} 34. Kg2 Rc1) 34. Kg2 {[%emt 0:00:36]} Qc1 {[%emt 0:02:59]} 35. Bf8 {[%emt 0:02:08][%csl Gf8][%cal Rd4g7] [#]} Bh3+ $2 {[%emt 0:06:43][%mdl 8192] [#] This move loses the game for Black.} 36. Kh2 $1 $18 {[%emt 0:00:42][%csl Gf8][%cal Rd4g7]} (36. Kxh3 $2 Qh1+ 37. Kg4 Rc4 $19) 36... f6 {[%emt 0:04:11] [#]} (36... f5 $2 37. Rd1 (37. Kxh3 $2 Qh1#) 37... Qc2 38. Kxh3 $18) 37. Rd1 $1 {[%emt 0:00:24]} (37. Kxh3 $2 Qh1+ 38. Kg4 Rc4 $19) 37... Qc2 {[%emt 0:05:43]} 38. Kxh3 {[%emt 0:00:35]} Qf5+ {[%emt 0:01:24]} 39. g4 {[%emt 0:02:27]} Qf3+ {[%emt 0:00:27]} 40. Kh2 {[%emt 0:00:09]} Rc3 {[%emt 0:01:25] Against Qd3+} 41. Bd6 {[%emt 0:31:06]} (41. Qxd5 $2 {perishes.} Qxf2+ 42. Qg2 Qxh4+ 43. Kg1 Rg3 $19) (41. Kg1 Rc4 42. Qd3+ (42. Qxd5 $2 Rxg4+ 43. Kf1 Re4 $19) 42... Qxd3 43. Rxd3 Kg8 $18) 41... g5 $2 {[%emt 0:33:44]} (41... Qh3+ 42. Kg1 Rc4) 42. hxg5 {[%emt 0:00:50]} (42. Qxd5 $2 Qxf2+ 43. Qg2 Rh3+ 44. Kxh3 Qxh4#) 42... hxg5 {[%emt 0:01:40]} 43. Qxa7+ {[%emt 0:02:16]} (43. Qxd5 $2 {leads to mate.} Qxf2+ 44. Qg2 Rh3+ 45. Kxh3 Qh4#) 43... Kh6 $2 {[%emt 0:01:02]} (43... Kg6 $18 44. Qd4 Kg7) 44. Bf8+ {[%emt 0:00:27]} Kg6 {[%emt 0:00:12]} 45. Qg7# {[%emt 0:17:41] A cool game by Gheng.   Weighted Error Value: White=0.33/Black=0.37} 1-0

[Event "DFMM-LV 2023"]
[Site "Braunfels"]
[Date "2023.06.09"]
[Round "3.22"]
[White "Frank, Michelle Viviane"]
[Black "Heil, Marina"]
[Result "0-1"]
[Annotator "NA RC COMBH"]
[ECO "C41"]
[WhiteElo "1857"]
[BlackElo "1866"]
[PlyCount "96"]
[EventDate "2023.06.09"]
[EventType "team-tourn"]
[EventCountry "GER"]
[SourceTitle "playchess.com"]
[Source "ChessBase"]
[SourceQuality "1"]
[TimeControl "40/5400+30:1800+30"]

1. e4 {[%emt 0:00:04]} d6 {[%emt 0:00:06]} 2. d4 {[%emt 0:00:30]} Nf6 {[%emt 0:00:08]} 3. Nc3 {[%emt 0:01:26]} Nbd7 {[%emt 0:00:11]} 4. Nf3 {[%emt 0:01:21]} e5 {[%emt 0:00:32]} 5. Bc4 {[%emt 0:03:00]} Be7 {[%emt 0:01:40]} 6. dxe5 {[%emt 0:14:23]} dxe5 {[%emt 0:00:09]} 7. Bxf7+ {[%emt 0:05:59]} Kxf7 {[%emt 0:00:09]} 8. Ng5+ {[%emt 0:00:04]} Kg8 {[%emt 0:00:13]} 9. Ne6 {[%emt 0:00:07]} Qe8 {[%emt 0:00:17]} 10. Nxc7 {[%emt 0:00:05]} Qg6 {[%emt 0:00:35]} 11. Nxa8 {[%emt 0:00:15]} Qxg2 {[%emt 0:01:16]} 12. Rf1 {[%emt 0:00:05]} Nc5 {[%emt 0:10:21]} 13. Bg5 {[%emt 0:04:18]} Bh3 {[%emt 0:04:40]} 14. Qe2 {[%emt 0:00:04]} Qxg5 {[%emt 0:01:05]} 15. Qc4+ {[%emt 0:04:29]} Be6 {[%emt 0:01:52]} 16. Nd5 {[%emt 0:00:13]} Nfxe4 {[%emt 0:03:23]} 17. Rd1 {[%emt 0:01:43]} b6 {[%emt 0:16:02]} 18. b4 {[%emt 0:01:01]} Nd6 {[%emt 0:10:26]} 19. h4 {[%emt 0:00:42]} Nxc4 {[%emt 0:03:16]} 20. hxg5 {[%emt 0:00:06]} Bxd5 {[%emt 0:02:50]} 21. Rxd5 {[%emt 0:00:14]} Na6 {[%emt 0:01:29]} 22. b5 {[%emt 0:02:06]} Kf7 {[%emt 0:02:17]} 23. bxa6 {[%emt 0:00:15]} Rxa8 {[%emt 0:00:10]} 24. Rd7 {[%emt 0:01:34]} Ke6 {[%emt 0:02:55]} 25. Rc7 {[%emt 0:01:17]} Na3 {[%emt 0:01:58]} 26. Ke2 {[%emt 0:01:59]} Nb5 {[%emt 0:01:25]} 27. Rb7 {[%emt 0:01:08]} Nd4+ {[%emt 0:07:31]} 28. Ke3 {[%emt 0:02:49]} Bxg5+ {[%emt 0:02:59]} 29. f4 {[%emt 0:00:46]} Bxf4+ {[%emt 0:04:11]} 30. Rxf4 {[%emt 0:00:07]} Nxc2+ {[%emt 0:00:26]} 31. Kd2 {[%emt 0:00:21]} exf4 {[%emt 0:00:06]} 32. Kxc2 {[%emt 0:00:03]} Kf6 {[%emt 0:00:15]} 33. Kd3 {[%emt 0:00:08]} Re8 {[%emt 0:01:47]} 34. Rxa7 {[%emt 0:00:15]} Re3+ {[%emt 0:00:07]} 35. Kd4 {[%emt 0:00:09]} Ra3 {[%emt 0:00:08]} 36. Ra8 {[%emt 0:00:06]} Kf7 {[%emt 0:00:46]} 37. Ra7+ {[%emt 0:00:43]} Kg6 {[%emt 0:00:09]} 38. Ra8 {[%emt 0:00:15]} Rxa2 {[%emt 0:00:19]} 39. Kc4 {[%emt 0:00:14]} f3 {[%emt 0:00:27]} 40. Kb5 {[%emt 0:00:05]} Rb2+ {[%emt 0:01:03]} 41. Kc6 {[%emt 0:30:07]} Kg5 {[%emt 0:33:36]} 42. Rg8 {[%emt 0:00:28]} f2 {[%emt 0:03:03]} 43. Rf8 {[%emt 0:00:20]} Kg4 {[%emt 0:01:16]} 44. a7 {[%emt 0:00:34]} Ra2 {[%emt 0:00:06]} 45. Kxb6 {[%emt 0:00:34]} Kg3 {[%emt 0:00:19]} 46. Rf5 {[%emt 0:00:19]} h6 {[%emt 0:01:43]} 47. Ra5 {[%emt 0:01:13]} Rxa5 {[%emt 0:00:07]} 48. Kxa5 {[%emt 0:00:02]} f1=Q {[%emt 0:00:14]} 0-1

[Event "DFMM-LV 2023"]
[Site "Braunfels"]
[Date "2023.06.09"]
[Round "3.23"]
[White "Roesler, Hannah Clara"]
[Black "Froehlich-Dill, Astrid"]
[Result "1/2-1/2"]
[Annotator "NA RC COMBH"]
[ECO "B00"]
[WhiteElo "1748"]
[BlackElo "1762"]
[PlyCount "151"]
[EventDate "2023.06.09"]
[EventType "team-tourn"]
[EventCountry "GER"]
[SourceTitle "playchess.com"]
[Source "ChessBase"]
[SourceQuality "1"]
[TimeControl "40/5400+30:1800+30"]

1. e4 {[%emt 0:00:05]} e6 {[%emt 0:00:24]} 2. d4 {[%emt 0:00:06]} b6 {[%emt 0:00:05]} 3. Nf3 {[%emt 0:00:16]} Bb7 {[%emt 0:00:20]} 4. Bd3 {[%emt 0:00:26]} Nf6 {[%emt 0:00:41]} 5. Qe2 {[%emt 0:00:28]} Be7 {[%emt 0:01:39]} 6. O-O {[%emt 0:00:31]} c5 {[%emt 0:02:03]} 7. e5 {[%emt 0:00:15]} Nd5 {[%emt 0:00:57]} 8. c4 {[%emt 0:01:55]} Nb4 {[%emt 0:01:25]} 9. Be4 {[%emt 0:01:25]} Bxe4 {[%emt 0:01:46]} 10. Qxe4 {[%emt 0:00:18]} N8c6 {[%emt 0:02:50]} 11. a3 {[%emt 0:01:47]} Na6 {[%emt 0:02:28]} 12. d5 {[%emt 0:02:12]} Na5 {[%emt 1:21:52]} 13. d6 {[%emt 0:04:24]} Bf8 {[%emt 0:00:00]} 14. Nbd2 {[%emt 0:05:04]} Rb8 {[%emt 0:00:00]} 15. Re1 {[%emt 0:02:52]} f6 {[%emt 0:00:00]} 16. Qg4 {[%emt 0:04:35]} f5 {[%emt 0:00:00]} 17. Qh3 {[%emt 0:02:34]} g6 {[%emt 0:00:00]} 18. Nf1 {[%emt 0:02:30]} Bg7 {[%emt 0:00:00]} 19. Bg5 {[%emt 0:02:49]} Qc8 {[%emt 0:00:00]} 20. Ng3 {[%emt 0:06:59]} h6 {[%emt 0:00:00]} 21. Bf6 {[%emt 0:00:30]} O-O {[%emt 0:00:00]} 22. Bxg7 {[%emt 0:03:18]} Kxg7 {[%emt 0:00:00]} 23. Nd2 {[%emt 0:00:16]} b5 {[%emt 0:00:00]} 24. b3 {[%emt 0:01:44]} bxc4 {[%emt 0:00:00]} 25. bxc4 {[%emt 0:00:10]} Rb2 {[%emt 0:00:00]} 26. Red1 {[%emt 0:01:14]} Qb7 {[%emt 0:00:00]} 27. Ne2 {[%emt 0:00:59]} Nxc4 {[%emt 0:00:00]} 28. Nxc4 {[%emt 0:00:57]} Rxe2 {[%emt 0:00:00]} 29. Qd3 {[%emt 0:02:14]} Qe4 {[%emt 0:00:00]} 30. Rab1 {[%emt 0:03:38]} Qxd3 {[%emt 0:00:00]} 31. Rxd3 {[%emt 0:00:06]} Re4 {[%emt 0:04:45]} 32. Nd2 {[%emt 0:01:10]} Rxe5 {[%emt 0:00:45]} 33. Kf1 {[%emt 0:01:25]} Rd5 {[%emt 0:01:27]} 34. Rxd5 {[%emt 0:01:29]} exd5 {[%emt 0:00:01]} 35. Rb7 {[%emt 0:00:26]} Rd8 {[%emt 0:01:07]} 36. Rxa7 {[%emt 0:01:13]} Nb8 {[%emt 0:00:40]} 37. Ke2 {[%emt 0:02:39]} Kf6 {[%emt 0:00:58]} 38. Nb3 {[%emt 0:00:33]} Nc6 {[%emt 0:01:44]} 39. Rb7 {[%emt 0:00:49]} Ke5 {[%emt 0:00:26]} 40. Nxc5 {[%emt 0:01:38]} Kxd6 {[%emt 0:00:14]} 41. Nd3 {[%emt 0:33:40]} Ra8 {[%emt 0:31:19]} 42. Nf4 {[%emt 0:08:09]} g5 {[%emt 0:00:00]} 43. Nh5 {[%emt 0:00:00]} Rxa3 {[%emt 0:00:00]} 44. Ng7 {[%emt 0:00:00]} Nd4+ {[%emt 0:00:00]} 45. Kd2 {[%emt 0:00:00]} f4 {[%emt 0:00:00]} 46. Rb6+ {[%emt 0:00:00]} Nc6 {[%emt 0:00:00]} 47. Nf5+ {[%emt 0:00:00]} Kc5 {[%emt 0:00:00]} 48. Rb7 {[%emt 0:00:00]} Ra2+ {[%emt 0:00:00]} 49. Ke1 {[%emt 0:00:00]} Ne5 {[%emt 0:00:00]} 50. Rc7+ {[%emt 0:00:00]} Kb4 {[%emt 0:00:00]} 51. Nxh6 {[%emt 0:00:00]} d4 {[%emt 0:00:00]} 52. Nf5 {[%emt 0:00:00]} d3 {[%emt 0:00:00]} 53. Nd4 {[%emt 0:00:00]} Nc4 {[%emt 0:00:00]} 54. Rb7+ {[%emt 0:00:00]} Kc3 {[%emt 0:00:00]} 55. Nb5+ {[%emt 0:00:00]} Kc2 {[%emt 0:00:00]} 56. Nd4+ {[%emt 0:00:00]} Kc3 {[%emt 0:00:00]} 57. Nb5+ {[%emt 0:00:00]} Kb4 {[%emt 0:00:33]} 58. Nd6+ {[%emt 0:00:00]} Kc5 {[%emt 0:02:07]} 59. Nxc4 {[%emt 0:00:00]} Kxc4 {[%emt 0:00:05]} 60. Rxd7 {[%emt 0:00:00]} Re2+ {[%emt 0:00:21]} 61. Kf1 {[%emt 0:00:00]} Kc3 {[%emt 0:00:46]} 62. f3 {[%emt 0:00:00]} Rb2 {[%emt 0:02:38]} 63. Rc7+ {[%emt 0:00:00]} Kd2 {[%emt 0:00:11]} 64. Kf2 {[%emt 0:00:00]} Rc2 {[%emt 0:00:38]} 65. Ra7 {[%emt 0:01:47]} Kc1+ {[%emt 0:01:27]} 66. Kf1 {[%emt 0:00:26]} d2 {[%emt 0:01:22]} 67. Ra1+ {[%emt 0:00:24]} Kb2 {[%emt 0:00:05]} 68. Rd1 {[%emt 0:00:19]} Rc1 {[%emt 0:01:01]} 69. Ke2 {[%emt 0:00:20]} Rxd1 {[%emt 0:00:28]} 70. Kxd1 {[%emt 0:42:26]} Kc3 {[%emt 0:00:04]} 71. g3 {[%emt 0:00:00]} fxg3 {[%emt 0:01:56]} 72. hxg3 {[%emt 0:00:00]} Kd3 {[%emt 0:00:21]} 73. f4 {[%emt 0:00:00]} gxf4 {[%emt 0:00:04]} 74. gxf4 {[%emt 0:00:00]} Ke4 {[%emt 0:00:43]} 75. f5 {[%emt 0:00:00]} Kxf5 {[%emt 0:00:03]} 76. Kxd2 {[%emt 0:03:00]} 1/2-1/2

[Event "DFMM-LV 2023"]
[Site "Braunfels"]
[Date "2023.06.09"]
[Round "3.24"]
[White "von Beckh, Frieda"]
[Black "Sokyrko, Sofiia"]
[Result "0-1"]
[Annotator "NA RC COMBH"]
[ECO "C40"]
[WhiteElo "1672"]
[BlackElo "1503"]
[PlyCount "80"]
[EventDate "2023.06.09"]
[EventType "team-tourn"]
[EventCountry "GER"]
[SourceTitle "playchess.com"]
[Source "ChessBase"]
[SourceQuality "1"]
[TimeControl "40/5400+30:1800+30"]

1. e4 {[%emt 0:00:03]} e5 {[%emt 0:00:09]} 2. Nf3 {[%emt 0:00:05]} d5 {[%emt 0:00:11]} 3. exd5 {[%emt 0:03:30]} e4 {[%emt 0:00:13]} 4. Qe2 {[%emt 0:00:41]} Nf6 {[%emt 0:00:14]} 5. Nc3 {[%emt 0:02:07]} Be7 {[%emt 0:00:10]} 6. Nxe4 {[%emt 0:00:44]} O-O {[%emt 0:00:18]} 7. d4 {[%emt 0:02:11]} Nxe4 {[%emt 0:05:08]} 8. Qxe4 {[%emt 0:01:21]} Bb4+ {[%emt 0:00:16]} 9. c3 {[%emt 0:01:33]} Re8 {[%emt 0:00:08]} 10. Ne5 {[%emt 0:00:25]} f6 {[%emt 0:00:38]} 11. cxb4 {[%emt 0:01:32]} fxe5 {[%emt 0:03:43]} 12. dxe5 {[%emt 0:00:10]} Nd7 {[%emt 0:00:28]} 13. f4 {[%emt 0:01:35]} Nf6 {[%emt 0:01:57]} 14. Qd4 {[%emt 0:00:27]} Nxd5 {[%emt 0:01:26]} 15. Bc4 {[%emt 0:01:19]} c6 {[%emt 0:00:15]} 16. O-O {[%emt 0:01:34]} Qe7 {[%emt 0:02:06]} 17. Bxd5+ {[%emt 0:00:46]} cxd5 {[%emt 0:00:06]} 18. Qxd5+ {[%emt 0:00:12]} Be6 {[%emt 0:00:07]} 19. Qc5 {[%emt 0:00:11]} Qf7 {[%emt 0:00:18]} 20. Be3 {[%emt 0:00:35]} Rec8 {[%emt 0:00:42]} 21. Qd4 {[%emt 0:00:55]} Rc4 {[%emt 0:00:23]} 22. Qd2 {[%emt 0:00:15]} Qe8 {[%emt 0:07:28]} 23. Bc5 {[%emt 0:01:11]} Rd8 {[%emt 0:00:23]} 24. Bd6 {[%emt 0:00:57]} Qg6 {[%emt 0:01:03]} 25. b3 {[%emt 0:00:55]} Rc2 {[%emt 0:00:23]} 26. f5 {[%emt 0:00:41]} Bxf5 {[%emt 0:01:08]} 27. Qd5+ {[%emt 0:00:07]} Kh8 {[%emt 0:01:27]} 28. Qf3 {[%emt 0:00:24]} Be6 {[%emt 0:02:19]} 29. Rf2 {[%emt 0:01:04]} Rdc8 {[%emt 0:01:38]} 30. Raf1 {[%emt 0:00:58]} Rxf2 {[%emt 0:02:28]} 31. Qxf2 {[%emt 0:00:07]} h6 {[%emt 0:00:59]} 32. Qf3 {[%emt 0:08:19]} Rc2 {[%emt 0:02:36]} 33. a3 {[%emt 0:02:52]} Rb2 {[%emt 0:05:56]} 34. Re1 {[%emt 0:02:23]} Kh7 {[%emt 0:06:11]} 35. Qxb7 {[%emt 0:02:08]} Bh3 {[%emt 0:00:35]} 36. g3 {[%emt 0:00:30]} Bg2 {[%emt 0:02:33]} 37. Qxa7 {[%emt 0:02:46]} Bd5 {[%emt 0:01:34]} 38. Bc5 {[%emt 0:03:34]} Rg2+ {[%emt 0:00:49]} 39. Kf1 {[%emt 0:00:27]} Qd3+ {[%emt 0:00:10]} 40. Re2 {[%emt 0:00:07]} Qxe2# {[%emt 0:00:05]} 0-1